fUST/lending_fUST_20241225
["ID","MTS","AMOUNT","RATE_DAILY","PERIOD"]
[346547173,1735073437832,-500.0,0.00012999,2]
[346547174,1735073437841,-500.0,0.00012999,2]
[346547175,1735073437851,-500.0,0.00012999,2]
[346547176,1735073437860,-500.0,0.00012999,2]
[346547177,1735073437870,-500.0,0.00012999,2]
[346547178,1735073437880,-500.0,0.00012999,2]
[346547179,1735073437890,-26.03724973,0.00012999,2]
[346547180,1735073437901,-323.96275026,0.00012999,2]
[346547181,1735073437910,-151.11908357,0.00013,2]
[346547182,1735073437920,-465.08756662,0.00013,2]
[346547183,1735073437930,-89.83059955,0.00013,2]
[346547184,1735073437942,-3700.0,0.00013,2]
[346547185,1735073437954,-40000.0,0.00013,2]
[346547186,1735073437965,-1110.00000007,0.00013,2]
[346547187,1735073437977,-88213.17331571,0.00013,2]
[346547188,1735073437986,-228.422,0.0001302,2]
[346547189,1735073437996,-267.63818313,0.0001309,2]
[346547190,1735073438005,-267.63818313,0.00013259,2]
[346547191,1735073438014,-303.8781763,0.000134,2]
[346547192,1735073438024,-267.63818313,0.00013429,2]
[346547193,1735073438033,-1000.0,0.00013437,2]
[346547194,1735073438042,-1000.0,0.00013459,2]
[346547195,1735073438052,-152.0,0.00013529,2]
[346547196,1735073438061,-523.1182057,0.00013561,2]
[346547197,1735073438070,-1000.0,0.00013571,2]
[346547198,1735073438079,-267.63818313,0.00013598,2]
[346547199,1735073438088,-666.0,0.00013598,2]
[346547200,1735073438097,-150.0,0.00013613,2]
[346547201,1735073438107,-534.0,0.00013613,2]
[346547202,1735073438116,-2119.0,0.00013613,2]
[346547203,1735073438126,-2357.0,0.00013613,2]
[346547204,1735073438135,-359.27331547,0.00013673,2]
[346547205,1735073438146,-595.7757822,0.00013673,2]
[346547206,1735073438154,-500.0,0.00013673,2]
[346547207,1735073438163,-500.0,0.00013673,2]
[346547208,1735073438173,-500.0,0.00013673,2]
[346547209,1735073438181,-511.91928225,0.00013673,2]
[346547210,1735073438190,-500.0,0.00013673,2]
[346547211,1735073438199,-500.0,0.00013673,2]
[346547212,1735073438208,-479.14191759,0.00013673,2]
[346547213,1735073438217,-500.0,0.00013673,2]
[346547214,1735073438227,-500.0,0.00013673,2]
[346547215,1735073438236,-500.0,0.00013673,2]
[346547216,1735073438245,-500.0,0.00013673,2]
[346547217,1735073438254,-500.0,0.00013673,2]
[346547218,1735073438264,-1000.0,0.00013678,2]
[346547219,1735073438276,-639.44052144,0.00013697,2]
[346547220,1735073438286,-399.48150246,0.00013697,2]
[346547221,1735073438295,-156.485502,0.00013698,2]
[346547222,1735073438304,-2580.71220356,0.00013698,2]
[346547223,1735073438313,-151.0,0.00013698,2]
[346547224,1735073438322,-151.0,0.00013698,2]
[346547225,1735073438332,-151.0,0.00013698,2]
[346547226,1735073438341,-151.0,0.00013698,2]
[346547227,1735073438350,-151.0,0.00013698,2]
[346547228,1735073438359,-500.0,0.00013698,2]
[346547229,1735073438368,-500.0,0.00013698,2]
[346547230,1735073438379,-500.0,0.00013698,2]
[346547231,1735073438388,-211.68658769,0.00013698,2]
[346547232,1735073438397,-151.0,0.00013698,2]
[346547233,1735073438406,-500.0,0.00013698,2]
[346547234,1735073438415,-151.0,0.00013698,2]
[346547235,1735073438424,-151.0,0.00013698,2]
[346547236,1735073438433,-151.0,0.00013698,2]
[346547237,1735073438443,-500.0,0.00013698,2]
[346547238,1735073438452,-500.0,0.00013698,2]
[346547239,1735073438461,-500.0,0.00013698,2]
[346547240,1735073438471,-326.1375484,0.00013698,2]
[346547241,1735073438480,-500.0,0.00013698,2]
[346547242,1735073438490,-330.22275453,0.00013698,2]
[346547243,1735073438499,-500.0,0.00013698,2]
[346547244,1735073438510,-500.0,0.00013698,2]
[346547245,1735073438519,-220.54776626,0.00013698,2]
[346547246,1735073438529,-268.69080599,0.00013698,2]
[346547247,1735073438539,-500.0,0.00013698,2]
[346547248,1735073438548,-1086.95,0.00013698,2]
[346547249,1735073438558,-500.0,0.00013698,2]
[346547250,1735073438567,-500.0,0.00013698,2]
[346547251,1735073438577,-500.0,0.00013698,2]
[346547252,1735073438587,-500.0,0.00013698,2]
[346547253,1735073438597,-500.0,0.00013698,2]
[346547254,1735073438606,-987.16,0.00013698,2]
[346547255,1735073438616,-573.99,0.00013698,2]
[346547256,1735073438626,-500.0,0.00013698,2]
[346547257,1735073438635,-500.0,0.00013698,2]
[346547258,1735073438645,-500.0,0.00013698,2]
[346547259,1735073438654,-500.0,0.00013698,2]
[346547260,1735073438664,-500.0,0.00013698,2]
[346547261,1735073438673,-1000.0,0.00013698,2]
[346547262,1735073438683,-500.0,0.00013698,2]
[346547263,1735073438693,-500.0,0.00013698,2]
[346547264,1735073438703,-366.87345666,0.00013698,2]
[346547265,1735073438713,-590.49,0.00013698,2]
[346547266,1735073438722,-500.0,0.00013698,2]
[346547267,1735073438732,-443.80601044,0.00013698,2]
[346547268,1735073438742,-388.9115591,0.00013698,2]
[346547269,1735073438751,-500.0,0.00013698,2]
[346547270,1735073438761,-500.0,0.00013698,2]
[346547271,1735073438772,-151.0,0.00013698,2]
[346547272,1735073438783,-500.0,0.00013698,2]
[346547273,1735073438793,-500.0,0.00013698,2]
[346547274,1735073438803,-500.0,0.00013698,2]
[346547275,1735073438813,-238.61619151,0.00013698,2]
[346547276,1735073438823,-500.0,0.00013698,2]
[346547277,1735073438832,-500.0,0.00013698,2]
[346547278,1735073438841,-305.49319,0.00013698,2]
[346547279,1735073438852,-305.49319,0.00013698,2]
[346547280,1735073438862,-305.49319,0.00013698,2]
[346547281,1735073438872,-305.49319,0.00013698,2]
[346547282,1735073438883,-305.49319,0.00013698,2]
[346547283,1735073438894,-500.0,0.00013698,2]
[346547284,1735073438903,-500.0,0.00013698,2]
[346547285,1735073438912,-500.0,0.00013698,2]
[346547286,1735073438922,-500.0,0.00013698,2]
[346547287,1735073438932,-151.0,0.00013698,2]
[346547288,1735073438942,-151.0,0.00013698,2]
[346547289,1735073438951,-151.0,0.00013698,2]
[346547290,1735073438961,-500.0,0.00013698,2]
[346547291,1735073438971,-601.26,0.00013698,4]
[346547292,1735073438980,-561.86,0.00013698,2]
[346547293,1735073438990,-1179.78,0.00013698,2]
[346547294,1735073438999,-539.00900304,0.00013698,2]
[346547295,1735073439009,-703.72,0.00013698,2]
[346547296,1735073439018,-393.08855799,0.00013698,2]
[346547297,1735073439028,-151.0,0.00013698,2]
[346547298,1735073439037,-151.0,0.00013698,2]
[346547299,1735073439047,-151.0,0.00013698,2]
[346547300,1735073439057,-151.0,0.00013698,2]
[346547301,1735073439067,-151.0,0.00013698,2]
[346547302,1735073439076,-151.0,0.00013698,2]
[346547303,1735073439085,-151.0,0.00013698,2]
[346547304,1735073439095,-268.281246,0.00013698,2]
[346547305,1735073439105,-151.0,0.00013698,2]
[346547306,1735073439114,-151.0,0.00013698,2]
[346547307,1735073439124,-843.49,0.00013698,2]
[346547309,1735073439281,-151.0,0.00013698,2]
[346547310,1735073439291,-151.0,0.00013698,2]
[346547311,1735073439301,-801.39,0.00013698,2]
[346547312,1735073439310,-1823.93,0.00013698,2]
[346547313,1735073439319,-500.0,0.00013698,2]
[346547314,1735073439330,-1116.15,0.00013698,2]
[346547316,1735073439339,-500.0,0.00013698,2]
[346547317,1735073439349,-500.0,0.00013698,2]
[346547318,1735073439358,-1200.51,0.00013698,2]
[346547319,1735073439368,-500.0,0.00013698,2]
[346547320,1735073439378,-943.58,0.00013698,2]
[346547321,1735073439387,-151.0,0.00013698,2]
[346547323,1735073439396,-151.0,0.00013698,2]
[346547324,1735073439406,-500.0,0.00013698,2]
[346547325,1735073439415,-629.75,0.00013698,2]
[346547326,1735073439424,-884.24,0.00013698,2]
[346547327,1735073439433,-500.0,0.00013698,2]
[346547328,1735073439443,-500.0,0.00013698,2]
[346547329,1735073439455,-500.0,0.00013698,2]
[346547330,1735073439465,-625.4,0.00013698,2]
[346547331,1735073439474,-151.0,0.00013698,2]
[346547332,1735073439484,-500.0,0.00013698,2]
[346547333,1735073439494,-151.0,0.00013698,2]
[346547334,1735073439504,-151.0,0.00013698,2]
[346547335,1735073439513,-151.0,0.00013698,2]
[346547336,1735073439522,-151.0,0.00013698,2]
[346547337,1735073439532,-151.0,0.00013698,2]
[346547338,1735073439542,-151.0,0.00013698,2]
[346547339,1735073439551,-500.0,0.00013698,2]
[346547341,1735073439560,-1370.8,0.00013698,2]
[346547343,1735073439570,-500.0,0.00013698,2]
[346547345,1735073439579,-1723.66,0.00013698,2]
[346547347,1735073439589,-314.12846196,0.00013698,2]
[346547348,1735073439599,-500.0,0.00013698,2]
[346547349,1735073439609,-500.0,0.00013698,2]
[346547350,1735073439618,-500.0,0.00013698,2]
[346547351,1735073439628,-826.94,0.00013698,2]
[346547353,1735073439638,-500.0,0.00013698,2]
[346547355,1735073439648,-1189.39,0.00013698,2]
[346547356,1735073439658,-541.4,0.00013698,2]
[346547357,1735073439667,-500.0,0.00013698,2]
[346547358,1735073439677,-500.0,0.00013698,2]
[346547359,1735073439686,-783.87,0.00013698,2]
[346547361,1735073439696,-500.0,0.00013698,2]
[346547363,1735073439705,-279.2015581,0.00013698,2]
[346547365,1735073439715,-500.0,0.00013698,2]
[346547366,1735073439724,-500.0,0.00013698,2]
[346547367,1735073439734,-500.0,0.00013698,2]
[346547368,1735073439743,-632.42,0.00013698,2]
[346547369,1735073439753,-518.19,0.00013698,2]
[346547370,1735073439762,-2916.33,0.00013698,2]
[346547371,1735073439771,-500.0,0.00013698,2]
[346547372,1735073439783,-1498.82,0.00013698,2]
[346547373,1735073439792,-3844.53,0.00013698,2]
[346547374,1735073439801,-508.8,0.00013698,2]
[346547375,1735073439810,-500.0,0.00013698,2]
[346547376,1735073439820,-500.0,0.00013698,2]
[346547377,1735073439830,-681.23,0.00013698,2]
[346547378,1735073439839,-500.0,0.00013698,2]
[346547379,1735073439848,-500.0,0.00013698,2]
[346547380,1735073439858,-964.05,0.00013698,2]
[346547381,1735073439867,-641.16,0.00013698,2]
[346547382,1735073439878,-500.0,0.00013698,2]
[346547383,1735073439887,-500.0,0.00013698,2]
[346547384,1735073439897,-500.0,0.00013698,2]
[346547385,1735073439906,-500.0,0.00013698,2]
[346547386,1735073439915,-1043.34,0.00013698,2]
[346547388,1735073439925,-500.0,0.00013698,2]
[346547389,1735073439935,-500.0,0.00013698,2]
[346547390,1735073439944,-500.0,0.00013698,2]
[346547392,1735073439953,-151.0,0.00013698,2]
[346547394,1735073439962,-151.0,0.00013698,2]
[346547396,1735073439971,-151.0,0.00013698,2]
[346547398,1735073439980,-645.61,0.00013698,2]
[346547400,1735073439989,-500.0,0.00013698,2]
[346547401,1735073439998,-589.76,0.00013698,2]
[346547402,1735073440007,-500.0,0.00013698,2]
[346547403,1735073440016,-151.0,0.00013698,2]
[346547404,1735073440026,-151.0,0.00013698,2]
[346547405,1735073440036,-151.0,0.00013698,2]
[346547406,1735073440045,-500.0,0.00013698,2]
[346547408,1735073440054,-500.0,0.00013698,2]
[346547409,1735073440063,-500.0,0.00013698,2]
[346547411,1735073440073,-500.0,0.00013698,2]
[346547412,1735073440082,-500.0,0.00013698,2]
[346547414,1735073440092,-500.0,0.00013698,2]
[346547415,1735073440102,-500.0,0.00013698,2]
[346547416,1735073440111,-500.0,0.00013698,2]
[346547417,1735073440120,-500.0,0.00013698,2]
[346547418,1735073440130,-500.0,0.00013698,2]
[346547419,1735073440139,-500.0,0.00013698,2]
[346547420,1735073440148,-500.0,0.00013698,2]
[346547421,1735073440158,-500.0,0.00013698,2]
[346547422,1735073440167,-500.0,0.00013698,2]
[346547423,1735073440178,-500.0,0.00013698,2]
[346547424,1735073440187,-500.0,0.00013698,2]
[346547425,1735073440197,-500.0,0.00013698,2]
[346547426,1735073440206,-742.2,0.00013698,2]
[346547427,1735073440216,-256.756996,0.00013698,2]
[346547428,1735073440226,-1601.08,0.00013698,2]
[346547429,1735073440236,-500.0,0.00013698,2]
[346547430,1735073440246,-500.0,0.00013698,2]
[346547431,1735073440256,-500.0,0.00013698,2]
[346547432,1735073440266,-151.0,0.00013698,2]
[346547433,1735073440275,-500.0,0.00013698,2]
[346547434,1735073440285,-205.502846,0.00013698,2]
[346547435,1735073440294,-500.0,0.00013698,2]
[346547436,1735073440303,-500.0,0.00013698,2]
[346547437,1735073440313,-1038.27,0.00013698,2]
[346547438,1735073440322,-500.0,0.00013698,2]
[346547439,1735073440331,-500.0,0.00013698,2]
[346547440,1735073440341,-155.670125,0.00013698,2]
[346547441,1735073440350,-500.0,0.00013698,2]
[346547442,1735073440359,-500.0,0.00013698,2]
[346547443,1735073440369,-500.0,0.00013698,2]
[346547444,1735073440380,-500.0,0.00013698,2]
[346547445,1735073440389,-500.0,0.00013698,2]
[346547446,1735073440398,-1928.21,0.00013698,2]
[346547447,1735073440407,-729.53,0.00013698,2]
[346547448,1735073440418,-500.0,0.00013698,2]
[346547449,1735073440429,-500.0,0.00013698,2]
[346547450,1735073440440,-3235.91,0.00013698,2]
[346547451,1735073440450,-587.33,0.00013698,2]
[346547452,1735073440459,-151.0,0.00013698,2]
[346547453,1735073440468,-151.0,0.00013698,2]
[346547454,1735073440479,-151.0,0.00013698,2]
[346547455,1735073440488,-151.0,0.00013698,2]
[346547456,1735073440498,-151.0,0.00013698,2]
[346547457,1735073440507,-151.0,0.00013698,2]
[346547458,1735073440517,-151.0,0.00013698,2]
[346547459,1735073440526,-500.0,0.00013698,2]
[346547460,1735073440535,-151.0,0.00013698,2]
[346547461,1735073440545,-151.0,0.00013698,2]
[346547462,1735073440555,-151.0,0.00013698,2]
[346547463,1735073440565,-287.95,0.00013698,2]
[346547464,1735073440575,-151.0,0.00013698,2]
[346547465,1735073440584,-151.0,0.00013698,2]
[346547466,1735073440593,-151.0,0.00013698,2]
[346547467,1735073440603,-500.0,0.00013698,2]
[346547468,1735073440612,-151.0,0.00013698,2]
[346547469,1735073440622,-151.0,0.00013698,2]
[346547470,1735073440632,-151.0,0.00013698,2]
[346547471,1735073440642,-222.0524,0.00013698,2]
[346547472,1735073440652,-500.0,0.00013698,2]
[346547473,1735073440661,-953.29,0.00013698,2]
[346547474,1735073440671,-151.0,0.00013698,2]
[346547475,1735073440680,-151.0,0.00013698,2]
[346547476,1735073440690,-151.0,0.00013698,2]
[346547477,1735073440699,-151.0,0.00013698,2]
[346547478,1735073440708,-669.28,0.00013698,2]
[346547479,1735073440719,-151.0,0.00013698,2]
[346547480,1735073440728,-151.0,0.00013698,2]
[346547481,1735073440737,-151.0,0.00013698,2]
[346547482,1735073440747,-151.0,0.00013698,2]
[346547483,1735073440756,-238.03530403,0.00013698,2]
[346547484,1735073440766,-617.64,0.00013698,2]
[346547485,1735073440777,-812.33,0.00013698,2]
[346547486,1735073440787,-500.0,0.00013698,2]
[346547487,1735073440797,-500.0,0.00013698,2]
[346547488,1735073440806,-10429.17,0.00013698,2]
[346547489,1735073440817,-500.0,0.00013698,2]
[346547490,1735073440826,-500.0,0.00013698,2]
[346547491,1735073440836,-500.0,0.00013698,2]
[346547492,1735073440846,-21487.35,0.00013698,2]
[346547493,1735073440855,-500.0,0.00013698,2]
[346547494,1735073440866,-653.81,0.00013698,2]
[346547495,1735073440875,-500.0,0.00013698,2]
[346547496,1735073440884,-3323.26,0.00013698,2]
[346547497,1735073440893,-2077.22,0.00013698,2]
[346547498,1735073440902,-500.0,0.00013698,2]
[346547499,1735073440911,-183.29744434,0.00013698,2]
[346547500,1735073440920,-500.0,0.00013698,2]
[346547501,1735073440930,-151.0,0.00013698,2]
[346547502,1735073440939,-151.0,0.00013698,2]
[346547503,1735073440949,-500.0,0.00013698,2]
[346547504,1735073440958,-1233.03,0.00013698,2]
[346547505,1735073440967,-151.0,0.00013698,2]
[346547506,1735073440976,-295.152007,0.00013698,2]
[346547507,1735073440985,-500.0,0.00013698,2]
[346547508,1735073440994,-500.0,0.00013698,2]
[346547509,1735073441003,-3571.23,0.00013698,2]
[346547510,1735073441012,-887.59,0.00013698,2]
[346547511,1735073441021,-2833.52,0.00013698,2]
[346547512,1735073441031,-1403.93,0.00013698,2]
[346547513,1735073441040,-2318.2,0.00013698,2]
[346547514,1735073441050,-500.0,0.00013698,2]
[346547515,1735073441058,-2872.5,0.00013698,2]
[346547516,1735073441067,-500.0,0.00013698,2]
[346547517,1735073441076,-500.0,0.00013698,2]
[346547518,1735073441085,-500.0,0.00013698,2]
[346547519,1735073441094,-500.0,0.00013698,2]
[346547520,1735073441103,-187.480811,0.00013698,2]
[346547521,1735073441112,-1162.03,0.00013698,2]
[346547522,1735073441121,-187.480811,0.00013698,2]
[346547523,1735073441131,-187.480811,0.00013698,2]
[346547524,1735073441140,-187.480811,0.00013698,2]
[346547525,1735073441150,-2172.79,0.00013698,2]
[346547526,1735073441159,-187.480811,0.00013698,2]
[346547527,1735073441168,-187.480811,0.00013698,2]
[346547528,1735073441177,-1626.44,0.00013698,2]
[346547529,1735073441187,-187.480811,0.00013698,2]
[346547530,1735073441196,-187.480811,0.00013698,2]
[346547531,1735073441205,-187.480811,0.00013698,2]
[346547532,1735073441214,-187.480811,0.00013698,2]
[346547533,1735073441223,-187.480811,0.00013698,2]
[346547534,1735073441232,-187.480811,0.00013698,2]
[346547535,1735073441241,-187.480811,0.00013698,2]
[346547536,1735073441251,-187.480811,0.00013698,2]
[346547537,1735073441259,-187.480811,0.00013698,2]
[346547538,1735073441269,-187.480811,0.00013698,2]
[346547539,1735073441278,-151.0,0.00013698,2]
[346547540,1735073441287,-151.0,0.00013698,2]
[346547541,1735073441296,-156.395316,0.00013698,2]
[346547542,1735073441305,-500.0,0.00013698,2]
[346547543,1735073441314,-526.64,0.00013698,2]
[346547544,1735073441324,-500.0,0.00013698,2]
[346547545,1735073441332,-151.0,0.00013698,2]
[346547546,1735073441342,-151.0,0.00013698,2]
[346547547,1735073441351,-970.48,0.00013698,2]
[346547548,1735073441361,-1206.89,0.00013698,2]
[346547549,1735073441370,-875.31,0.00013698,2]
[346547550,1735073441380,-939.57,0.00013698,2]
[346547551,1735073441389,-1618.19,0.00013698,2]
[346547552,1735073441399,-500.0,0.00013698,2]
[346547553,1735073441408,-1248.06,0.00013698,2]
[346547554,1735073441417,-500.0,0.00013698,2]
[346547555,1735073441426,-500.0,0.00013698,2]
[346547556,1735073441435,-593.02737489,0.00013698,2]
[346547557,1735073441444,-2283.14,0.00013698,2]
[346547558,1735073441454,-502.67,0.00013698,2]
[346547559,1735073441463,-500.0,0.00013698,2]
[346547560,1735073441475,-151.0,0.00013698,2]
[346547561,1735073441484,-217.053312,0.00013698,2]
[346547562,1735073441493,-500.0,0.00013698,2]
[346547563,1735073441503,-500.0,0.00013698,2]
[346547564,1735073441512,-3541.06,0.00013698,2]
[346547565,1735073441521,-1237.28,0.00013698,2]
[346547566,1735073441531,-1238.11,0.00013698,2]
[346547567,1735073441541,-2404.54,0.00013698,2]
[346547568,1735073441550,-2626.17,0.00013698,2]
[346547569,1735073441560,-5758.87,0.00013698,2]
[346547570,1735073441569,-718.0,0.00013698,2]
[346547571,1735073441579,-500.0,0.00013698,2]
[346547572,1735073441588,-500.0,0.00013698,2]
[346547573,1735073441597,-500.0,0.00013698,2]
[346547574,1735073441607,-626.23,0.00013698,2]
[346547575,1735073441616,-500.0,0.00013698,2]
[346547576,1735073441625,-500.0,0.00013698,2]
[346547577,1735073441635,-1656.65,0.00013698,2]
[346547578,1735073441645,-500.0,0.00013698,2]
[346547579,1735073441654,-1375.08,0.00013698,2]
[346547580,1735073441663,-500.0,0.00013698,2]
[346547581,1735073441673,-1315.8,0.00013698,2]
[346547582,1735073441683,-500.0,0.00013698,2]
[346547583,1735073441692,-854.25,0.00013698,2]
[346547584,1735073441701,-500.0,0.00013698,2]
[346547585,1735073441711,-500.0,0.00013698,2]
[346547586,1735073441720,-500.0,0.00013698,2]
[346547587,1735073441730,-684.61,0.00013698,2]
[346547588,1735073441740,-151.0,0.00013698,2]
[346547589,1735073441749,-151.0,0.00013698,2]
[346547590,1735073441758,-151.0,0.00013698,2]
[346547591,1735073441768,-151.0,0.00013698,2]
[346547592,1735073441781,-151.0,0.00013698,2]
[346547593,1735073441790,-151.0,0.00013698,2]
[346547594,1735073441800,-151.0,0.00013698,2]
[346547595,1735073441809,-151.0,0.00013698,2]
[346547596,1735073441819,-151.0,0.00013698,2]
[346547597,1735073441829,-151.0,0.00013698,2]
[346547598,1735073441838,-151.0,0.00013698,2]
[346547599,1735073441848,-151.0,0.00013698,2]
[346547600,1735073441858,-151.0,0.00013698,2]
[346547601,1735073441867,-151.0,0.00013698,2]
[346547602,1735073441879,-690.17,0.00013698,2]
[346547603,1735073441888,-151.0,0.00013698,2]
[346547604,1735073441899,-151.0,0.00013698,2]
[346547605,1735073441908,-151.0,0.00013698,2]
[346547606,1735073441918,-151.0,0.00013698,2]
[346547607,1735073441927,-151.0,0.00013698,2]
[346547608,1735073441937,-151.0,0.00013698,2]
[346547609,1735073441946,-151.0,0.00013698,2]
[346547610,1735073441955,-151.0,0.00013698,2]
[346547611,1735073441965,-151.0,0.00013698,2]
[346547612,1735073441974,-151.0,0.00013698,2]
[346547613,1735073441983,-151.0,0.00013698,2]
[346547614,1735073441992,-192.749981,0.00013698,2]
[346547615,1735073442001,-151.0,0.00013698,2]
[346547616,1735073442010,-151.0,0.00013698,2]
[346547617,1735073442019,-151.0,0.00013698,2]
[346547618,1735073442148,-271.2089,0.00013698,2]
[346547619,1735073442159,-500.0,0.00013698,2]
[346547620,1735073442168,-1290.13,0.00013698,2]
[346547621,1735073442177,-500.0,0.00013698,2]
[346547622,1735073442186,-393.57586248,0.00013698,2]
[346547623,1735073442195,-500.0,0.00013698,2]
[346547625,1735073442205,-500.0,0.00013698,2]
[346547626,1735073442215,-500.0,0.00013698,2]
[346547627,1735073442224,-836.48,0.00013698,2]
[346547629,1735073442234,-728.44,0.00013698,2]
[346547631,1735073442243,-23361.05,0.00013698,2]
[346547633,1735073442252,-500.0,0.00013698,2]
[346547634,1735073442263,-3331.54,0.00013698,2]
[346547636,1735073442272,-500.0,0.00013698,2]
[346547637,1735073442281,-151.0,0.00013698,2]
[346547638,1735073442290,-508.04087699,0.00013698,2]
[346547639,1735073442300,-151.0,0.00013698,2]
[346547640,1735073442309,-500.0,0.00013698,2]
[346547642,1735073442318,-151.0,0.00013698,2]
[346547643,1735073442327,-151.0,0.00013698,2]
[346547645,1735073442337,-151.0,0.00013698,2]
[346547647,1735073442347,-151.0,0.00013698,2]
[346547649,1735073442356,-500.0,0.00013698,2]
[346547652,1735073442366,-229.034962,0.00013698,2]
[346547654,1735073442379,-1885.53,0.00013698,2]
[346547657,1735073442388,-875.15,0.00013698,2]
[346547658,1735073442397,-3545.36,0.00013698,2]
[346547660,1735073442406,-500.0,0.00013698,2]
[346547662,1735073442416,-645.57,0.00013698,2]
[346547664,1735073442425,-151.0,0.00013698,2]
[346547666,1735073442434,-218.010155,0.00013698,2]
[346547668,1735073442444,-500.0,0.00013698,2]
[346547670,1735073442454,-1554.82,0.00013698,2]
[346547672,1735073442463,-2543.74,0.00013698,2]
[346547674,1735073442473,-3953.35,0.00013698,2]
[346547676,1735073442484,-500.0,0.00013698,2]
[346547678,1735073442493,-1033.53,0.00013698,2]
[346547680,1735073442503,-7445.82,0.00013698,2]
[346547681,1735073442513,-3099.07,0.00013698,2]
[346547682,1735073442523,-500.0,0.00013698,2]
[346547683,1735073442532,-500.0,0.00013698,2]
[346547684,1735073442542,-239.94150064,0.00013698,2]
[346547685,1735073442552,-1541.42,0.00013698,2]
[346547686,1735073442562,-500.0,0.00013698,2]
[346547687,1735073442571,-500.0,0.00013698,2]
[346547688,1735073442581,-1276.39,0.00013698,2]
[346547689,1735073442590,-1477.56,0.00013698,2]
[346547690,1735073442599,-500.0,0.00013698,2]
[346547691,1735073442609,-500.0,0.00013698,2]
[346547692,1735073442618,-500.0,0.00013698,2]
[346547693,1735073442629,-500.0,0.00013698,2]
[346547694,1735073442639,-1177.65,0.00013698,2]
[346547695,1735073442648,-843.37,0.00013698,2]
[346547696,1735073442657,-500.0,0.00013698,2]
[346547697,1735073442667,-634.48,0.00013698,2]
[346547698,1735073442676,-500.0,0.00013698,2]
[346547699,1735073442686,-609.63,0.00013698,2]
[346547700,1735073442695,-1228.87,0.00013698,2]
[346547701,1735073442705,-500.0,0.00013698,2]
[346547702,1735073442714,-16356.7,0.00013698,2]
[346547703,1735073442724,-665.98,0.00013698,2]
[346547704,1735073442733,-342.26586419,0.00013698,2]
[346547705,1735073442743,-500.0,0.00013698,2]
[346547706,1735073442752,-500.0,0.00013698,2]
[346547707,1735073442761,-500.0,0.00013698,2]
[346547708,1735073442771,-500.0,0.00013698,2]
[346547709,1735073442783,-564.60976884,0.00013698,2]
[346547710,1735073442792,-507.07181368,0.00013698,2]
[346547711,1735073442802,-716.62,0.00013698,2]
[346547712,1735073442812,-151.0,0.00013698,2]
[346547713,1735073442823,-151.0,0.00013698,2]
[346547714,1735073442832,-151.0,0.00013698,2]
[346547715,1735073442842,-151.0,0.00013698,2]
[346547716,1735073442855,-151.0,0.00013698,2]
[346547717,1735073442864,-151.0,0.00013698,2]
[346547718,1735073442876,-1689.08,0.00013698,2]